fUST/lending_fUST_20250622
["ID","MTS","AMOUNT","RATE_DAILY","PERIOD"]
[366874994,1750536461727,24900.0,0.00018999,2]
[366874999,1750536623426,5000.0,0.00019102,2]
[366875026,1750536632231,-192.98287751,0.00019872,2]
[366875028,1750536632241,-300.0,0.00019972,2]
[366875030,1750536632251,-500.0,0.00019973,2]
[366875032,1750536632261,-500.0,0.00019973,2]
[366875035,1750536632272,-500.0,0.00019973,2]
[366875037,1750536632281,-500.0,0.00019973,2]
[366875038,1750536632291,-300.0,0.00019997,2]
[366875041,1750536632301,-500.0,0.00019998,2]
[366875042,1750536632310,-289.03874918,0.00019998,2]
[366875045,1750536632320,-408.89247069,0.00019998,2]
[366875047,1750536632329,-165.80691989,0.00019998,2]
[366875048,1750536632339,-1349.16360151,0.00019998,2]
[366875050,1750536632348,-500.0,0.00019999,2]
[366875051,1750536632358,-500.0,0.00019999,2]
[366875053,1750536632373,-500.0,0.00019999,2]
[366875056,1750536632383,-500.0,0.00019999,2]
[366875058,1750536632393,-402.98705374,0.00019999,2]
[366875059,1750536632403,-500.0,0.00019999,2]
[366875060,1750536632413,-455.78210167,0.00019999,2]
[366875062,1750536632422,-500.0,0.00019999,2]
[366875064,1750536632432,-500.0,0.00019999,2]
[366875066,1750536632441,-500.0,0.00019999,2]
[366875068,1750536632450,-500.0,0.00019999,2]
[366875070,1750536632460,-500.0,0.00019999,2]
[366875071,1750536632470,-500.0,0.00019999,2]
[366875072,1750536632479,-500.0,0.00019999,2]
[366875073,1750536632489,-500.0,0.00019999,2]
[366875074,1750536632499,-500.0,0.00019999,2]
[366875075,1750536632509,-500.0,0.00019999,2]
[366875076,1750536632518,-500.0,0.00019999,2]
[366875078,1750536632527,-500.0,0.00019999,2]
[366875080,1750536632536,-432.09093762,0.00019999,2]
[366875081,1750536632546,-500.0,0.00019999,2]
[366875082,1750536632555,-500.0,0.00019999,2]
[366875083,1750536632564,-500.0,0.00019999,2]
[366875084,1750536632574,-500.0,0.00019999,2]
[366875085,1750536632583,-500.0,0.00019999,2]
[366875086,1750536632592,-550.0,0.00019999,2]
[366875087,1750536632602,-4496.92552923,0.0002,2]
[366875088,1750536632619,-54826.54180747,0.0002,2]
[366875089,1750536632629,-164.22998838,0.00020087,2]
[366875090,1750536632638,-313.78306,0.00020187,2]
[366875091,1750536632648,-1000.0,0.00020521,2]
[366875092,1750536632658,-500.0,0.00020548,2]
[366875093,1750536632669,-598.02182271,0.00020548,2]
[366875094,1750536632679,-275.11255256,0.00020548,2]
[366875095,1750536632689,-500.0,0.000207,2]
[366875096,1750536632699,-500.0,0.00020758,2]
[366875097,1750536632708,-500.0,0.00020758,2]
[366875098,1750536632718,-500.0,0.000209,2]
[366875099,1750536632728,-436.91156977,0.000211,4]
[366875100,1750536632738,-436.9115696,0.000211,4]
[366875101,1750536632748,-319.0,0.00021224,2]
[366875102,1750536632758,-436.9115696,0.00021245,4]
[366875103,1750536632768,-1000.0,0.00021248,2]
[366875104,1750536632778,-1000.0,0.00021306,2]
[366875105,1750536632789,-436.9115696,0.00021417,5]
[366875106,1750536632799,-1000.0,0.00021448,2]
[366875107,1750536632809,-246.30201214,0.00021448,2]
[366875108,1750536632819,-151.0,0.00021448,2]
[366875109,1750536632829,-168.0,0.00021492,2]
[366875110,1750536632839,-436.9115696,0.0002159,5]
[366875111,1750536632848,-420.0,0.00021747,2]
[366875112,1750536632858,-151.0,0.00021747,2]
[366875113,1750536632874,-436.9115696,0.00021762,5]
[366875114,1750536632884,-420.0,0.00021775,2]
[366875116,1750536632893,-1500.0,0.00021854,2]
[366875118,1750536632902,-211.85,0.00021907,10]
[366875120,1750536632912,-466.67975276,0.00021917,2]
[366875122,1750536632919,-460.0,0.00021917,2]
[366875124,1750536632926,-467.59048016,0.00021917,2]
[366875126,1750536632935,-460.0,0.00021917,2]
[366875128,1750536632943,-460.0,0.00021917,2]
[366875130,1750536632951,-460.0,0.00021917,2]
[366875132,1750536632960,-460.0,0.00021917,2]
[366875134,1750536632970,-164.6,0.00021917,2]
[366875136,1750536632980,-460.0,0.00021917,2]
[366875138,1750536632990,-460.0,0.00021917,2]
[366875139,1750536632999,-460.0,0.00021919,2]
[366875140,1750536633010,-168.0,0.0002192,2]
[366875141,1750536633020,-436.9115696,0.00021934,6]
[366875142,1750536633030,-1223.0,0.00022017,2]
[366875143,1750536633041,-177.0,0.00022037,2]
[366875144,1750536633054,-500.0,0.000221,2]
[366875145,1750536633065,-436.9115696,0.00022107,6]
[366875146,1750536633075,-177.0,0.00022111,2]
[366875147,1750536633085,-168.0,0.00022121,2]
[366875148,1750536633095,-168.0,0.00022169,2]
[366875149,1750536633106,-836.41202323,0.0002218,2]
[366875150,1750536633120,-160.0,0.0002218,2]
[366875151,1750536633130,-177.0,0.00022205,2]
[366875152,1750536633140,-177.0,0.00022262,2]
[366875153,1750536633151,-362.77,0.00022269,10]
[366875154,1750536633161,-436.9115696,0.00022279,6]
[366875155,1750536633171,-168.0,0.00022293,2]
[366875156,1750536633181,-2000.0,0.00022402,2]
[366875157,1750536633191,-177.0,0.00022438,2]
[366875158,1750536633201,-436.9115696,0.00022452,7]
[366875159,1750536633211,-436.9115696,0.00022624,7]
[366875160,1750536633221,-168.0,0.00022642,2]
[366875161,1750536633231,-164.22998837,0.00022668,2]
[366875162,1750536633241,-834.29,0.000227,7]
[366875163,1750536633251,-168.0,0.00022747,2]
[366875164,1750536633261,-436.9115696,0.00022797,7]
[366875165,1750536633271,-168.0,0.0002285,2]
[366875166,1750536633280,-2500.0,0.0002295,2]
[366875167,1750536633290,-436.9115696,0.00022969,8]
[366875168,1750536633300,-150.0,0.00023,2]
[366875169,1750536633309,-168.0,0.00023002,2]
[366875170,1750536633319,-168.0,0.00023062,2]
[366875171,1750536633329,-168.0,0.00023136,2]
[366875172,1750536633339,-436.9115696,0.00023141,8]
[366875173,1750536633348,-160.0,0.00023173,2]
[366875174,1750536633359,-424.93363889,0.00023173,2]
[366875175,1750536633372,-500.0,0.00023175,2]
[366875176,1750536633382,-900.0,0.00023194,2]
[366875177,1750536633392,-12549.17366507,0.00023199,2]
[366875178,1750536633403,-213.55395994,0.000232,2]
[366875179,1750536633413,-1471.0,0.00023215,2]
[366875180,1750536633423,-900.0,0.00023263,2]
[366875181,1750536633434,-3698.14,0.0002328,2]
[366875182,1750536633443,-900.0,0.00023286,2]
[366875183,1750536633454,-900.0,0.00023311,2]
[366875184,1750536633464,-436.9115696,0.00023314,9]
[366875185,1750536633474,-500.0,0.0002332,2]
[366875186,1750536633484,-500.0,0.00023326,2]
[366875187,1750536633494,-500.0,0.00023327,2]
[366875188,1750536633504,-168.0,0.00023352,2]
[366875189,1750536633514,-500.0,0.00023439,2]
[366875190,1750536633524,-500.0,0.00023454,2]
[366875191,1750536633533,-900.0,0.00023461,2]
[366875192,1750536633656,-900.0,0.00023479,2]
[366875193,1750536633667,-900.0,0.00023485,2]
[366875194,1750536633677,-436.9115696,0.00023486,9]
[366875195,1750536633686,-500.0,0.00023494,2]
[366875196,1750536633696,-3000.0,0.00023498,2]
[366875197,1750536633706,-500.0,0.00023522,2]
[366875198,1750536633717,-500.0,0.00023522,2]
[366875199,1750536633726,-500.0,0.00023548,2]
[366875200,1750536633737,-500.0,0.00023573,2]
[366875201,1750536633746,-1471.0,0.00023626,2]
[366875202,1750536633756,-500.0,0.00023631,2]
[366875203,1750536633767,-436.9115696,0.00023659,9]
[366875204,1750536633777,-500.0,0.00023664,2]
[366875205,1750536633787,-500.0,0.00023665,2]
[366875206,1750536633797,-587.0,0.00023681,2]
[366875207,1750536633807,-153.0,0.00023682,2]
[366875208,1750536633816,-153.0,0.00023682,2]
[366875209,1750536633827,-153.0,0.00023682,2]
[366875210,1750536633837,-153.0,0.00023682,2]
[366875211,1750536633846,-153.0,0.00023682,2]
[366875212,1750536633857,-153.0,0.00023682,2]
[366875213,1750536633870,-153.0,0.00023682,2]
[366875214,1750536633881,-153.0,0.00023682,2]
[366875215,1750536633892,-153.0,0.00023682,2]
[366875216,1750536633902,-153.0,0.00023682,2]
[366875217,1750536633912,-153.0,0.00023682,2]
[366875218,1750536633922,-153.0,0.00023682,2]
[366875219,1750536633932,-153.0,0.00023682,2]
[366875220,1750536633942,-153.0,0.00023682,2]
[366875221,1750536633952,-153.0,0.00023682,2]
[366875222,1750536633961,-153.0,0.00023682,2]
[366875223,1750536633971,-153.0,0.00023682,2]
[366875224,1750536633981,-153.0,0.00023682,2]
[366875225,1750536633991,-153.0,0.00023682,2]
[366875226,1750536634001,-153.0,0.00023682,2]
[366875227,1750536634011,-153.0,0.00023682,2]
[366875228,1750536634020,-153.0,0.00023682,2]
[366875229,1750536634030,-153.0,0.00023682,2]
[366875230,1750536634040,-153.0,0.00023682,2]
[366875231,1750536634049,-153.0,0.00023682,2]
[366875232,1750536634061,-153.0,0.00023682,2]
[366875233,1750536634071,-153.0,0.00023682,2]
[366875234,1750536634080,-153.0,0.00023682,2]
[366875235,1750536634090,-153.0,0.00023682,2]
[366875236,1750536634100,-153.0,0.00023682,2]
[366875237,1750536634110,-153.0,0.00023682,2]
[366875238,1750536634122,-153.0,0.00023682,2]
[366875239,1750536634133,-153.0,0.00023682,2]
[366875240,1750536634146,-153.0,0.00023682,2]
[366875241,1750536634156,-153.0,0.00023682,2]
[366875242,1750536634166,-153.0,0.00023682,2]
[366875243,1750536634176,-153.0,0.00023682,2]
[366875244,1750536634186,-153.0,0.00023682,2]
[366875245,1750536634195,-153.0,0.00023682,2]
[366875246,1750536634205,-500.0,0.00023693,2]
[366875247,1750536634214,-500.0,0.0002371,2]
[366875248,1750536634224,-587.0,0.0002371,2]
[366875249,1750536634234,-150.0,0.00023715,2]
[366875250,1750536634243,-184.870615,0.00023744,2]
[366875251,1750536634253,-785.74,0.0002377,3]
[366875252,1750536634262,-900.0,0.0002378,2]
[366875253,1750536634272,-900.0,0.0002379,2]
[366875254,1750536634282,-301.88,0.00023811,3]
[366875255,1750536634291,-150.94,0.00023819,3]
[366875256,1750536634301,-603.77,0.00023821,3]
[366875257,1750536634310,-612.46432433,0.00023829,2]
[366875258,1750536634320,-436.9115696,0.00023831,10]
[366875259,1750536634329,-497.22,0.0002386,3]
[366875260,1750536634339,-160.0,0.00023869,2]
[366875261,1750536634348,-20061.42,0.0002387,2]
[366875262,1750536634357,-500.0,0.00023913,2]
[366875263,1750536634369,-834.29,0.00024,7]
[366875264,1750536634379,-158.54,0.00024,2]
[366875265,1750536634388,-436.9115696,0.00024003,10]
[366875266,1750536634398,-1874.29054532,0.00024046,2]
[366875267,1750536634407,-500.0,0.00024054,2]
[366875268,1750536634417,-151.0,0.00024065,2]
[366875269,1750536634427,-500.0,0.00024065,2]
[366875270,1750536634436,-5000.0,0.00024065,2]
[366875271,1750536634446,-500.0,0.00024065,2]
[366875272,1750536634456,-500.0,0.00024065,2]
[366875273,1750536634466,-207.4,0.00024065,2]
[366875274,1750536634475,-4930.63174128,0.00024065,2]
[366875275,1750536634484,-500.0,0.00024065,2]
[366875276,1750536634495,-500.0,0.00024065,2]
[366875277,1750536634505,-500.0,0.00024065,2]
[366875278,1750536634515,-500.0,0.00024065,2]
[366875279,1750536634526,-500.0,0.00024065,2]
[366875280,1750536634535,-500.0,0.00024065,2]
[366875281,1750536634545,-500.0,0.00024065,2]
[366875282,1750536634554,-500.0,0.00024065,2]
[366875283,1750536634563,-500.0,0.00024065,2]
[366875284,1750536634573,-500.0,0.00024065,2]
[366875285,1750536634583,-500.0,0.00024065,2]
[366875286,1750536634592,-500.0,0.00024065,2]
[366875287,1750536634603,-500.0,0.00024076,2]
[366875288,1750536634614,-500.0,0.00024092,2]
[366875289,1750536634628,-500.0,0.00024099,2]
[366875290,1750536634638,-900.0,0.00024158,2]
[366875291,1750536634648,-965.0,0.00024173,2]
[366875292,1750536634659,-2161.0,0.00024173,2]
[366875293,1750536634669,-654.0,0.00024173,2]
[366875294,1750536634680,-436.9115696,0.00024176,10]
[366875295,1750536634690,-500.0,0.00024178,2]
[366875296,1750536634700,-500.0,0.00024182,2]
[366875297,1750536634710,-900.0,0.00024198,2]
[366875298,1750536634720,-900.0,0.00024245,2]
[366875299,1750536634729,-900.0,0.00024247,2]
[366875300,1750536634739,-300.0,0.00024263,2]
[366875301,1750536634749,-900.0,0.00024269,2]
[366875302,1750536634758,-500.0,0.00024295,2]
[366875303,1750536634768,-1471.0,0.00024305,2]
[366875304,1750536634777,-436.9115696,0.00024348,11]
[366875305,1750536634787,-500.0,0.00024351,2]
[366875306,1750536634797,-500.0,0.00024369,2]
[366875307,1750536634806,-500.0,0.00024407,2]
[366875308,1750536634816,-900.0,0.00024414,2]
[366875309,1750536634826,-900.0,0.00024417,2]
[366875310,1750536634837,-500.0,0.00024454,2]
[366875311,1750536634847,-500.0,0.00024503,2]
[366875312,1750536634856,-158.9019424,0.00024521,2]
[366875313,1750536634867,-1156.9105454,0.00024521,2]
[366875314,1750536634877,-436.9115696,0.00024521,11]
[366875315,1750536634887,-500.0,0.00024521,2]
[366875316,1750536634896,-250.0,0.00024534,2]
[366875317,1750536634905,-500.0,0.00024536,2]
[366875318,1750536634915,-500.0,0.00024578,2]
[366875319,1750536634925,-5000.0,0.00024613,2]
[366875320,1750536634934,-500.0,0.00024618,2]
[366875321,1750536634944,-900.0,0.00024627,2]
[366875322,1750536634953,-500.0,0.00024641,2]
[366875323,1750536634963,-332.27,0.00024657,4]
[366875324,1750536634972,-332.27,0.00024657,4]
[366875325,1750536634982,-332.27,0.00024657,4]
[366875326,1750536634991,-332.27,0.00024657,4]
[366875327,1750536635001,-332.27,0.00024657,4]
[366875328,1750536635010,-332.27,0.00024657,4]
[366875329,1750536635020,-332.27,0.00024657,4]
[366875330,1750536635030,-332.27,0.00024657,4]
[366875331,1750536635040,-1000.0,0.00024658,2]
[366875332,1750536635049,-380.0,0.00024658,2]
[366875333,1750536635062,-1000.0,0.00024658,2]
[366875334,1750536635072,-428.7283478,0.00024658,2]
[366875335,1750536635081,-1000.0,0.00024658,2]
[366875336,1750536635090,-1000.0,0.00024658,2]
[366875337,1750536635101,-500.0,0.00024658,2]
[366875338,1750536635110,-900.0,0.00024663,2]
[366875339,1750536635122,-500.0,0.00024685,2]
[366875340,1750536635131,-436.9115696,0.00024693,11]
[366875341,1750536635142,-2034.63,0.000247,2]
[366875342,1750536635151,-500.0,0.00024713,2]
[366875343,1750536635161,-945.31234579,0.00024731,2]
[366875344,1750536635170,-500.0,0.00024737,2]
[366875345,1750536635179,-500.0,0.00024738,2]
[366875346,1750536635188,-500.0,0.00024739,2]
[366875347,1750536635198,-500.0,0.0002474,2]
[366875348,1750536635208,-500.0,0.0002474,2]
[366875349,1750536635217,-500.0,0.00024751,2]
[366875350,1750536635227,-500.0,0.00024768,2]
[366875351,1750536635236,-900.0,0.00024778,2]
[366875352,1750536635246,-344.0,0.00024795,2]
[366875353,1750536635256,-332.27,0.00024799,4]
[366875354,1750536635264,-151.0,0.000248,7]
[366875355,1750536635273,-450.0,0.00024811,2]
[366875356,1750536635283,-549.781754,0.00024836,4]
[366875357,1750536635293,-436.9115696,0.00024866,12]
[366875358,1750536635302,-500.0,0.00024873,2]
[366875359,1750536635313,-500.0,0.00024873,2]
[366875360,1750536635323,-500.0,0.00024873,2]
[366875361,1750536635333,-500.0,0.00024873,2]
[366875362,1750536635343,-500.0,0.00024873,2]
[366875363,1750536635353,-500.0,0.00024873,2]
[366875364,1750536635362,-500.0,0.00024873,2]
[366875365,1750536635373,-500.0,0.00024873,2]
[366875366,1750536635383,-500.0,0.00024873,2]
[366875367,1750536635393,-500.0,0.00024873,2]
[366875368,1750536635402,-503.18318133,0.00024873,2]
[366875369,1750536635412,-500.0,0.00024873,2]
[366875370,1750536635421,-500.0,0.00024873,2]
[366875371,1750536635431,-500.0,0.00024873,2]
[366875372,1750536635440,-500.0,0.00024873,2]
[366875373,1750536635449,-500.0,0.00024873,2]
[366875374,1750536635458,-500.95282297,0.00024873,2]
[366875375,1750536635467,-500.0,0.00024873,2]
[366875376,1750536635476,-491.86024123,0.00024873,2]
[366875377,1750536635486,-332.27,0.00024899,4]
[366875378,1750536635495,-332.27,0.00024899,4]
[366875379,1750536635504,-332.27,0.00024899,4]
[366875380,1750536635514,-332.27,0.00024899,4]
[366875381,1750536635523,-332.27,0.00024899,4]
[366875382,1750536635532,-332.27,0.00024899,4]
[366875383,1750536635543,-332.27,0.00024899,4]
[366875384,1750536635552,-332.27,0.00024899,4]
[366875385,1750536635562,-332.27,0.00024899,4]
[366875386,1750536635571,-332.27,0.00024899,4]
[366875387,1750536635581,-332.27,0.00024899,4]
[366875388,1750536635590,-332.27,0.00024899,4]
[366875389,1750536635599,-332.27,0.00024899,4]
[366875390,1750536635608,-332.27,0.00024899,4]
[366875391,1750536635619,-332.44138623,0.00024899,4]
[366875392,1750536635628,-2000.0,0.000249,2]
[366875393,1750536635637,-2000.0,0.000249,2]
[366875394,1750536635646,-818620.806741,0.000249,2]
[366875395,1750536635656,-1471.0,0.00024903,2]
[366875396,1750536635665,-900.0,0.00024928,2]
[366875397,1750536635679,-200.0,0.00024931,120]
[366875398,1750536635688,-311.99785319,0.00024932,2]
[366875399,1750536635697,-2886.0,0.00025,2]
[366875400,1750536635706,-6827.0,0.00025,2]
[366875401,1750536635715,-152.0,0.00025,120]
[366875402,1750536635724,-1000.0,0.00025,2]
[366875403,1750536635734,-523.9660634,0.00025,10]
[366875404,1750536635743,-170.0,0.00025,7]
[366875405,1750536635752,-436.9115696,0.00025038,12]
[366875406,1750536635761,-262.26042249,0.00025068,120]
[366875407,1750536635771,-44938.94632879,0.00025082,2]
[366875408,1750536635781,-900.0,0.00025087,2]
[366875409,1750536635791,-900.0,0.00025097,2]
[366875410,1750536635800,-2576.63,0.000251,7]
[366875411,1750536635809,-900.0,0.00025118,2]
[366875412,1750536635819,-900.0,0.0002513,2]
[366875413,1750536635828,-900.0,0.00025136,2]
[366875414,1750536635838,-5000.0,0.00025161,2]
[366875415,1750536635847,-800.0,0.00025174,2]
[366875416,1750536635856,-900.0,0.00025178,2]
[366875417,1750536635865,-500.0,0.00025179,2]
[366875418,1750536635874,-603.76,0.00025181,3]
[366875419,1750536635883,-800.0,0.00025186,2]
[366875420,1750536635893,-301.88,0.00025189,3]
[366875421,1750536635902,-1207.54,0.00025191,3]
[366875422,1750536635912,-406.06,0.000252,31]
[366875423,1750536635922,-406.06,0.000252,31]
[366875424,1750536635931,-406.06,0.000252,31]
[366875425,1750536635940,-406.06,0.000252,31]
[366875426,1750536635950,-406.06,0.000252,31]
[366875427,1750536635959,-406.06,0.000252,31]
[366875428,1750536635968,-406.06,0.000252,31]
[366875429,1750536635979,-406.06,0.000252,31]
[366875430,1750536635988,-406.06,0.000252,31]
[366875431,1750536635998,-406.06,0.000252,31]
[366875432,1750536636007,-406.06,0.000252,31]
[366875433,1750536636017,-406.06,0.000252,31]
[366875434,1750536636026,-406.06,0.000252,31]
[366875435,1750536636036,-406.06,0.000252,31]
[366875436,1750536636045,-406.06,0.000252,31]
[366875437,1750536636059,-406.06,0.000252,31]
[366875438,1750536636068,-800.0,0.00025202,2]
[366875439,1750536636077,-800.0,0.00025209,2]
[366875440,1750536636087,-436.9115696,0.0002521,12]
[366875441,1750536636096,-1680.1745725,0.00025219,2]
[366875442,1750536636106,-800.0,0.0002522,2]
[366875443,1750536636115,-800.0,0.00025223,2]
[366875444,1750536636125,-994.44,0.0002523,3]
[366875445,1750536636136,-160.0,0.00025239,2]
[366875446,1750536636146,-800.0,0.00025239,2]
[366875447,1750536636156,-42482.15642507,0.00025246,2]
[366875448,1750536636165,-164.22998837,0.00025248,2]
[366875449,1750536636175,-1118.888283,0.0002528,5]
[366875450,1750536636184,-800.0,0.00025292,2]
[366875451,1750536636193,-2164.0,0.000253,14]
[366875452,1750536636202,-1000.0,0.000253,5]
[366875453,1750536636211,-1000.0,0.000253,5]
[366875454,1750536636220,-640.0,0.000253,2]
[366875455,1750536636229,-150.0,0.000253,30]
[366875456,1750536636238,-424.93363889,0.000253,3]
[366875457,1750536636247,-202.740427,0.000253,2]
[366875458,1750536636257,-160.0,0.000253,3]
[366875459,1750536636267,-12549.17366507,0.000253,3]
[366875460,1750536636275,-800.0,0.00025313,2]
[366875461,1750536636285,-800.0,0.00025318,2]
[366875462,1750536636294,-151.0,0.00025334,7]
[366875463,1750536636303,-151.0,0.00025335,7]
[366875464,1750536636312,-151.0,0.00025335,3]
[366875465,1750536636321,-151.0,0.00025335,3]
[366875466,1750536636330,-151.0,0.00025335,3]
[366875467,1750536636339,-151.0,0.00025335,3]
[366875468,1750536636349,-1748.0,0.00025335,3]
[366875469,1750536636358,-151.0,0.00025335,3]
[366875470,1750536636369,-1748.0,0.00025335,3]
[366875471,1750536636378,-151.0,0.00025335,3]
[366875472,1750536636387,-151.0,0.00025335,3]
[366875473,1750536636397,-1748.0,0.00025335,3]
[366875474,1750536636495,-151.0,0.00025335,3]
[366875475,1750536636505,-1748.0,0.00025335,3]
[366875476,1750536636515,-151.0,0.00025335,3]
[366875477,1750536636524,-1748.0,0.00025335,3]
[366875478,1750536636534,-151.0,0.00025335,3]
[366875479,1750536636543,-1748.0,0.00025335,3]
[366875480,1750536636552,-151.0,0.00025335,3]
[366875481,1750536636562,-1748.0,0.00025335,3]
[366875482,1750536636571,-151.0,0.00025335,3]
[366875483,1750536636580,-1748.0,0.00025335,3]
[366875484,1750536636590,-151.0,0.00025335,3]
[366875485,1750536636599,-1748.0,0.00025335,3]
[366875486,1750536636609,-1748.0,0.00025335,3]
[366875487,1750536636619,-1748.0,0.00025335,3]
[366875488,1750536636628,-1748.0,0.00025335,3]
[366875489,1750536636638,-1748.0,0.00025335,3]
[366875490,1750536636647,-1748.0,0.00025335,3]
[366875491,1750536636657,-1150.28628493,0.00025335,3]
[366875492,1750536636666,-5109.76958464,0.00025337,2]
[366875493,1750536636675,-12938.53609673,0.00025337,2]
[366875494,1750536636684,-151.0,0.00025337,7]
[366875495,1750536636694,-151.0,0.00025337,7]
[366875496,1750536636703,-151.0,0.00025337,7]
[366875497,1750536636712,-151.0,0.00025337,7]
[366875498,1750536636722,-151.0,0.00025337,7]
[366875499,1750536636731,-151.0,0.00025337,7]
[366875500,1750536636741,-846.23824438,0.0002534,7]
[366875501,1750536636750,-508.87379417,0.00025342,9]
[366875502,1750536636761,-500.0,0.00025342,9]
[366875503,1750536636770,-153.0,0.00025342,2]
[366875504,1750536636780,-1137.9355917,0.00025342,2]
[366875505,1750536636790,-177.2671816,0.00025342,2]
[366875506,1750536636799,-177.2671816,0.00025342,2]
[366875507,1750536636809,-177.2671816,0.00025342,2]
[366875508,1750536636819,-159.0806219,0.00025342,2]
[366875509,1750536636828,-574.5372799,0.00025342,2]
[366875510,1750536636837,-352.5742864,0.00025342,2]
[366875511,1750536636847,-159.0806219,0.00025342,2]
[366875512,1750536636856,-574.5372799,0.00025342,2]
[366875513,1750536636867,-574.5372799,0.00025342,2]
[366875514,1750536636876,-158.5445834,0.00025342,2]
[366875515,1750536636885,-153.0,0.00025342,2]
[366875516,1750536636895,-153.0,0.00025342,2]
[366875517,1750536636904,-153.0,0.00025342,2]
[366875518,1750536636913,-153.0,0.00025342,2]
[366875519,1750536636923,-153.0,0.00025342,2]
[366875520,1750536636933,-153.0,0.00025342,2]
[366875521,1750536636942,-153.0,0.00025342,2]
[366875522,1750536636952,-153.0,0.00025342,2]
[366875523,1750536636961,-153.0,0.00025342,2]
[366875524,1750536636970,-153.0,0.00025342,2]
[366875525,1750536636979,-151.0,0.00025346,7]
[366875526,1750536636988,-151.0,0.00025346,7]
[366875527,1750536636997,-151.0,0.00025346,7]
[366875528,1750536637007,-151.0,0.00025346,7]
[366875529,1750536637016,-151.0,0.00025346,7]
[366875530,1750536637026,-151.0,0.00025346,7]
[366875531,1750536637035,-151.0,0.00025346,7]
[366875532,1750536637044,-151.0,0.00025346,7]
[366875533,1750536637054,-151.0,0.00025346,7]
[366875534,1750536637065,-151.0,0.00025346,7]
[366875535,1750536637075,-214.759124,0.00025346,7]
[366875536,1750536637084,-151.0,0.00025346,7]
[366875537,1750536637093,-207.281792,0.00025346,7]
[366875538,1750536637102,-151.0,0.00025346,7]
[366875539,1750536637112,-151.578217,0.00025346,7]
[366875540,1750536637122,-151.0,0.00025346,7]
[366875541,1750536637132,-162.175104,0.00025346,7]
[366875542,1750536637144,-153.609304,0.00025346,7]
[366875543,1750536637154,-151.0,0.00025346,7]
[366875544,1750536637163,-1087605.72418455,0.00025348,20]
[366875559,1750536637981,-460.0,0.00021917,2]
[366875561,1750536637991,-460.0,0.00021917,2]
[366875562,1750536638001,-500.0,0.00022016,7]
[366875564,1750536638011,-302.31,0.00024801,10]
[366875566,1750536638021,-1538641.185839,0.00025348,20]
[366875779,1750536644201,-155.02362261,0.00019339,2]
[366875780,1750536644210,-1081.904046,0.00025,2]
[366875781,1750536644220,-151.0,0.00025346,7]
[366875782,1750536644229,-274.853276,0.00025346,7]
[366875783,1750536644238,-2762.21905494,0.00025348,20]
[366875790,1750536646137,-251.92,0.00025338,10]
[366875791,1750536646147,-511049.71552653,0.00025348,20]
[366875795,1750537422649,5000.0,0.00019102,2]
[366875802,1750537635688,337.618977,0.00013699,2]